lending/lending_fUSD_20240510
["ID","MTS","AMOUNT","RATE_DAILY","PERIOD"]
[326774725,1715351441084,-334.70530888,0.00026898,2]
[326774726,1715351441094,-3083.43233643,0.00026898,2]
[326774727,1715351441105,-1000.0,0.00026898,2]
[326774728,1715351441115,-512.21132008,0.00026898,2]
[326774729,1715351441126,-368.23701486,0.00026898,2]
[326774730,1715351441135,-3214.51288854,0.00026899,2]
[326774731,1715351441145,-389157.83741853,0.000269,7]
[326774733,1715351441386,-1633.41176812,0.000269,7]
[326774736,1715351441400,-27261.8965944,0.000269,7]
[326774782,1715351442017,-337.79752053,0.000269,7]
[326774783,1715351442029,-627.07,0.000269,7]
[326774789,1715351444840,-1047.24381892,0.00025268,2]
[326774791,1715351444851,-2410.8846664,0.00026899,2]
[326774793,1715351444860,-2825.78355772,0.000269,7]
[326774802,1715351445602,-23192.78899611,0.000269,7]
[326774803,1715351445612,-949.51587967,0.000269,2]
[326774804,1715351445622,-4270.59405065,0.000269,2]
[326774805,1715351445631,-500.0,0.000269,2]
[326774806,1715351445642,-500.0,0.000269,2]
[326774807,1715351445651,-500.0,0.000269,2]
[326774808,1715351445661,-500.0,0.000269,2]
[326774809,1715351445670,-500.0,0.000269,2]
[326774810,1715351445680,-424.63107357,0.000269,2]
[326774811,1715351445693,-75.36892643,0.000269,2]
[326774812,1715351445702,-500.0,0.000269,2]
[326774813,1715351445711,-500.0,0.000269,2]
[326774814,1715351445720,-500.0,0.000269,2]
[326774815,1715351445729,-500.0,0.000269,2]
[326774816,1715351445738,-500.0,0.000269,2]
[326774817,1715351445749,-500.0,0.000269,2]
[326774818,1715351445759,-500.0,0.000269,2]
[326774819,1715351445768,-218.42107332,0.000269,2]
[326774820,1715351445780,-281.57892668,0.000269,2]
[326774821,1715351445790,-500.0,0.000269,2]
[326774822,1715351445799,-500.0,0.000269,2]
[326774823,1715351445809,-500.0,0.000269,2]
[326774824,1715351445819,-500.0,0.000269,2]
[326774825,1715351445828,-500.0,0.000269,2]
[326774826,1715351445837,-213.92107332,0.000269,2]
[326774827,1715351446062,-286.07892668,0.000269,2]
[326774828,1715351446072,-500.0,0.000269,2]
[326774829,1715351446082,-500.0,0.000269,2]
[326774830,1715351446091,-500.0,0.000269,2]
[326774831,1715351446101,-500.0,0.000269,2]
[326774832,1715351446110,-53.92107332,0.000269,2]
[326774833,1715351446562,-446.07892668,0.000269,2]
[326774834,1715351446572,-303.93307332,0.000269,2]
[326774835,1715351446584,-196.06692668,0.000269,2]
[326774836,1715351446595,-431.43307332,0.000269,2]
[326774843,1715351446967,-68.56692668,0.000269,2]
[326774844,1715351446977,-500.0,0.000269,2]
[326774845,1715351446986,-500.0,0.000269,2]
[326774846,1715351446996,-500.0,0.000269,2]
[326774847,1715351447005,-4.98202543,0.000269,2]
[326774851,1715351447448,-495.01797457,0.000269,2]
[326774852,1715351447458,-500.0,0.000269,2]
[326774853,1715351447467,-500.0,0.000269,2]
[326774854,1715351447478,-500.0,0.000269,2]
[326774855,1715351447487,-500.0,0.000269,2]
[326774856,1715351447497,-500.0,0.000269,2]
[326774857,1715351447506,-500.0,0.000269,2]
[326774858,1715351447515,-500.0,0.000269,2]
[326774859,1715351447524,-500.0,0.000269,2]
[326774860,1715351447533,-500.0,0.000269,2]
[326774861,1715351447542,-500.0,0.000269,2]
[326774862,1715351447556,-500.0,0.000269,2]
[326774863,1715351447566,-500.0,0.000269,2]
[326774864,1715351447575,-500.0,0.000269,2]
[326774865,1715351447584,-160.0,0.000269,2]
[326774866,1715351447594,-150.0,0.000269,2]
[326774867,1715351447604,-311.00653,0.000269,2]
[326774868,1715351447613,-8358.41727221,0.000269,2]
[326774869,1715351447626,-1501.75,0.000269,2]
[326774870,1715351447638,-3127.0,0.000269,2]
[326774871,1715351582558,150.0,0.00012897,2]
[326774872,1715351623682,15537.56120628,0.00013,2]
[326774873,1715351645921,810.22,0.00010959,2]
[326774874,1715351651522,150.0,9.75e-05,2]
[326774875,1715351651544,150.0,9.75e-05,2]
[326774876,1715351651565,218.94628122,9.75e-05,2]
[326774877,1715351651589,2024.81046568,9.75e-05,2]
[326774900,1715352635026,-458.34698187,0.00012365,2]
[326774901,1715352635037,-157.96855427,0.00012366,2]
[326774902,1715352635048,-3086.71814515,0.0001237,2]
[326774903,1715352635058,-240.996913,0.00012374,2]
[326774904,1715352635068,-159.71369038,0.00012534,2]
[326774905,1715352635078,-163.88087739,0.000129,2]
[326774906,1715352635088,-150.0,0.00012959,2]
[326774907,1715352635099,-642.48915098,0.00012998,2]
[326774908,1715352635110,-196.8758743,0.00012998,2]
[326774909,1715352635119,-200.64558336,0.00012998,2]
[326774910,1715352635130,-300.0,0.00012998,2]
[326774911,1715352635140,-150.0,0.00012998,2]
[326774912,1715352635151,-865.9123112,0.00012999,2]
[326774913,1715352635168,-1000.0,0.00012999,2]
[326774914,1715352635179,-512.21132008,0.00012999,2]
[326774915,1715352635190,-160.6591699,0.00012999,2]
[326774917,1715352635201,-334.70530888,0.00012999,2]
[326774918,1715352635213,-155.0,0.00012999,2]
[326774920,1715352635222,-499.99,0.00012999,2]
[326774922,1715352635232,-46005.78483675,0.00013,2]
[326774923,1715352635244,-3735.24449784,0.00013,2]
[326774925,1715352635258,-600.0,0.00013,2]
[326774926,1715352635271,-9327.86089019,0.00013,2]
[326774927,1715352635284,-618.39216357,0.00013,2]
[326774928,1715352635297,-739.77,0.00013,2]
[326774929,1715352635309,-12388.8,0.00013,2]
[326774930,1715352635399,-29284.31701807,0.00013,2]
[326774944,1715352639816,-30830.0,0.00013,2]
[326774945,1715352639828,-550.63971164,0.00013,2]
[326774946,1715352639839,-1073.41107565,0.00013,2]
[326774947,1715352639851,-432.78100653,0.00013,2]
[326774948,1715352639862,-270.31821058,0.00013,2]
[326774949,1715352639873,-232766.08102095,0.00013,2]
[326774950,1715352639884,-758765.33458609,0.00013,2]
[326774951,1715352639895,-724.34028103,0.00013,2]
[326774952,1715352639906,-1465.8,0.00013,2]
[326774953,1715352639958,-18136.60000014,0.00013,2]
[326774954,1715352639970,-2210.30716181,0.00013,2]
[326775001,1715352641423,-297806.89256894,0.00013,2]
[326775005,1715352641435,-594.4474837,0.00013,2]
[326775007,1715352641445,-315814.04757864,0.00013,2]
[326775010,1715352641454,-342.22,0.00013425,2]
[326775012,1715352641464,-397.16117121,0.000137,2]
[326775014,1715352641474,-210.0,0.00014298,2]
[326775015,1715352641483,-156.33,0.00014955,2]
[326775016,1715352641492,-4214.385869,0.00015,2]
[326775017,1715352641502,-1041.33176482,0.00015,2]
[326775018,1715352641511,-223.0,0.00015728,2]
[326775019,1715352641520,-209.40013676,0.00017,2]
[326775020,1715352641529,-6758.62117797,0.000173,2]
[326775021,1715352641538,-565.0,0.000174,2]
[326775022,1715352641547,-2858.0,0.000174,2]
[326775023,1715352641556,-150.69943881,0.0001788,2]
[326775024,1715352641565,-6758.62117792,0.00018483,2]
[326775025,1715352641574,-896.51,0.0001855,2]
[326775026,1715352641584,-250.0,0.00018665,2]
[326775027,1715352641593,-191.7,0.00018692,2]
[326775028,1715352641602,-1216.72,0.00018735,2]
[326775029,1715352641611,-172.42,0.0001874,2]
[326775030,1715352641621,-5000.0,0.00019,2]
[326775031,1715352641636,-225.0,0.00019,2]
[326775032,1715352641646,-836.92,0.00019075,2]
[326775033,1715352641655,-156.76,0.00019178,2]
[326775034,1715352641665,-151.02,0.00019178,2]
[326775035,1715352641680,-155.56828868,0.0001944,2]
[326775036,1715352641689,-800.0,0.00019479,2]
[326775037,1715352641700,-167.23,0.00019517,2]
[326775038,1715352641710,-150.15301608,0.00019624,2]
[326775039,1715352641720,-6758.62117792,0.00019665,2]
[326775040,1715352641730,-155.15556544,0.00019724,2]
[326775041,1715352641739,-150.61165563,0.00019775,2]
[326775042,1715352641748,-151.91320181,0.000199,2]
[326775043,1715352641758,-800.0,0.00019973,2]
[326775044,1715352641768,-155.0,0.0002,2]
[326775045,1715352641778,-155.70142758,0.0002,2]
[326775046,1715352641787,-6233.58277713,0.0002,2]
[326775047,1715352641797,-4873.61110047,0.0002,2]
[326775048,1715352641806,-155.0,0.0002,2]
[326775049,1715352641816,-861.5014495,0.0002,2]
[326775050,1715352641825,-155.15556544,0.00020002,2]
[326775051,1715352641835,-150.61165563,0.00020177,2]
[326775052,1715352641844,-17705.0,0.000203,5]
[326775053,1715352641853,-155.56828868,0.00020321,2]
[326775054,1715352641863,-150.15301608,0.00020664,2]
[326775055,1715352641873,-154.5676832,0.00020743,2]
[326775056,1715352641882,-154.65057799,0.00020794,2]
[326775057,1715352641891,-6758.62117792,0.00020848,2]
[326775058,1715352641901,-896.51,0.00020869,2]
[326775059,1715352641911,-18136.6,0.00020951,2]
[326775060,1715352641925,-2215.11343661,0.00021,2]
[326775062,1715352641935,-150.69943881,0.00021195,2]
[326775065,1715352641949,-189.02,0.00021353,2]
[326775066,1715352641960,-19942.79,0.0002137,2]
[326775068,1715352641971,-836.92,0.00021459,2]
[326775069,1715352641983,-153.85151725,0.00021634,2]
[326775071,1715352641994,-250.0,0.00021918,2]
[326775072,1715352642007,-2000.0,0.00021918,2]
[326775074,1715352642018,-164.02187723,0.00021955,2]
[326775075,1715352642031,-201.0,0.00021991,2]
[326775076,1715352642043,-288.0,0.00021991,2]
[326775077,1715352642054,-1059.0,0.00021991,2]
[326775078,1715352642064,-150.15301608,0.00022017,2]
[326775079,1715352642075,-6061.13472857,0.00022031,2]
[326775080,1715352642089,-697.48644935,0.00022031,2]
[326775081,1715352642099,-155.53423594,0.00022113,2]
[326775082,1715352642110,-386.97931471,0.00022167,2]
[326775083,1715352642124,-609.02068529,0.00022167,2]
[326775084,1715352642135,-179.0,0.0002226,10]
[326775085,1715352642145,-155.15556544,0.00022446,2]
[326775086,1715352642154,-353.0,0.000227,2]
[326775087,1715352642164,-623.88122408,0.000229,2]
[326775088,1715352642177,-174.05055866,0.000229,4]
[326775089,1715352642186,-253.15673692,0.000229,2]
[326775090,1715352642196,-583.83310749,0.000229,2]
[326775091,1715352642206,-3261.70212212,0.00023,5]
[326775095,1715352644077,-617.41186144,0.000129,2]
[326775097,1715352644550,-125.54441396,0.000129,2]
[326775101,1715352644560,-1170.92916583,0.0001788,2]
[326775105,1715352644570,-4625.44261983,0.00023,5]
[326775110,1715352644581,-180988.9092935,0.00023,5]
[326775114,1715352644595,-1238.83052,0.00023,5]
[326775120,1715352644607,-715.08855631,0.00023,5]
[326775125,1715352644618,-5841.85390724,0.00023,5]
[326775130,1715352644629,-1048.101,0.00023,5]
[326775133,1715352644640,-1035.65,0.00023,5]
[326775148,1715352645545,-268.93749325,0.00012999,2]
[326775149,1715352645554,-14392.59340172,0.00023,5]
[326775150,1715352645566,-2982.9799992,0.00023,5]
[326775151,1715352645579,-294.63944063,0.00023,5]
[326775152,1715352645591,-620.62,0.00023,5]
[326775153,1715352645603,-9696.2412669,0.00023,5]
[326775154,1715352645680,-318.94366537,0.00023,5]
[326775155,1715352645692,-11222.9481,0.00023,5]
[326775156,1715352645704,-3102.6114519,0.00023,5]
[326775163,1715352646786,-456.05393297,0.00012999,2]
[326775164,1715352646796,-504.33005077,0.00017259,2]
[326775165,1715352646807,-450.69071984,0.00017259,2]
[326775166,1715352646819,-3317.61627766,0.00017259,2]
[326775167,1715352646828,-87694.84981292,0.00023,5]
[326775168,1715352647077,-742.95627537,0.00015113,2]
[326775170,1715352647088,-370.73299989,0.00017259,2]
[326775171,1715352647098,-5088.31072476,0.00023,5]
[326775172,1715352647109,-5979.24564526,0.00023,5]
[326775174,1715352647121,-3695.44763815,0.00023,5]
[326775176,1715352647132,-352.63000276,0.00023,5]
[326775177,1715352647144,-260.18463195,0.00023,5]
[326775178,1715352647156,-745.35000001,0.00023,5]
[326775179,1715352647169,-4640.0,0.00023,5]
[326775182,1715353494946,481.48199999,0.00011688,2]
[326775183,1715353749678,-237.03062149,0.00011769,2]
[326775184,1715353752679,-157.96855427,0.00011769,2]
[326775185,1715353754022,-540.30813384,0.00011769,2]
[326775186,1715353760992,-305.56465458,0.00011768,2]
[326775187,1715353767224,-155.0,0.00011769,2]
[326775188,1715353773806,150.0,0.00011688,2]
[326775189,1715353773831,150.0,0.00011688,2]
[326775190,1715353773856,24.0546186,0.00011688,2]
[326775191,1715353774793,125.9453814,0.00011688,2]
[326775192,1715353774816,194.58147983,0.00011688,2]
[326775193,1715353774841,429.47313877,0.00011688,2]
[326775194,1715353782363,-515.72707236,0.00011769,2]
[326775195,1715353791126,-534.27292764,0.00011769,2]
[326775214,1715353834739,-157.96855427,0.00011767,2]
[326775216,1715353834748,-305.95729831,0.00011768,2]
[326775218,1715353834759,-65.72707236,0.00011769,2]
[326775220,1715353834769,-150.0,0.00011777,2]
[326775222,1715353834778,-90.11811761,0.00011777,2]
[326775224,1715353834789,-265.0,0.00011777,2]
[326775227,1715353834802,-280.28186825,0.00011777,2]
[326775229,1715353834820,-1291.9075021,0.00011777,2]
[326775232,1715353834847,-292.57988391,0.00011777,2]
[326775233,1715353834863,-392.43002097,0.00011778,2]
[326775236,1715353834874,-1047.24381892,0.00011778,2]
[326775237,1715353834892,-171.08822811,0.00011904,2]
[326775239,1715353834914,-155.0,0.00012339,2]
[326775241,1715353834933,-35326.16178743,0.00012339,2]
[326775243,1715353834943,-236.85996219,0.00012339,2]
[326775245,1715353834952,-228.69089277,0.00012339,2]
[326775247,1715353834962,-366.43842204,0.00012339,2]
[326775249,1715353834971,-10797.79916154,0.0001234,2]
[326775251,1715353834981,-63838.29378725,0.00012341,2]
[326775253,1715353834993,-4958.2107,0.00012341,2]
[326775255,1715353835004,-707.64498718,0.00012341,2]
[326775258,1715353835015,-6109.88399999,0.00012341,2]
[326775260,1715353835027,-1852.28,0.00012341,2]
[326775273,1715353839014,-368.23701486,0.00012339,2]
[326775276,1715353839025,-1019.14967798,0.00012341,2]
[326775279,1715353839039,-588.76465896,0.00012341,2]
[326775286,1715353839983,-3031.96442882,0.00012341,2]
[326775287,1715353839995,-773.97789956,0.00012341,2]
[326775288,1715353840006,-1445.0,0.00012341,2]
[326775289,1715353840018,-7332.1,0.00012341,2]
[326775344,1715353840598,-48125.72513138,0.00012341,2]
[326775346,1715353840607,-1305.32313643,0.00012349,2]
[326775348,1715353840617,-528.8047,0.000129,2]
[326775350,1715353840626,-2325.27290029,0.00012998,2]
[326775352,1715353840635,-499.99,0.00012998,2]
[326775354,1715353840645,-331.31733066,0.00012999,2]
[326775356,1715353840654,-155.0,0.00012999,2]
[326775358,1715353840663,-155.0,0.00012999,2]
[326775360,1715353840672,-167.63437116,0.00012999,2]
[326775362,1715353840682,-189.02,0.00014828,2]
[326775364,1715353840691,-170.42,0.00014926,2]
[326775366,1715353840700,-285.18,0.00014995,2]
[326775368,1715353840710,-171.08822808,0.00015536,2]
[326775370,1715353840719,-3072.92794834,0.00016,2]
[326775372,1715353840728,-250.0,0.0001611,2]
[326775374,1715353840738,-1062.42695168,0.00017258,2]
[326775376,1715353840747,-666.9861521,0.00017258,2]
[326775378,1715353840756,-711.54040194,0.00017258,2]
[326775380,1715353840765,-788.38579576,0.00017258,2]
[326775382,1715353840775,-591.0,0.000173,2]
[326775384,1715353840784,-2830.0,0.000173,2]
[326775386,1715353840793,-1053.83624931,0.0001788,2]
[326775388,1715353840804,-1053.83624922,0.0001788,2]
[326775390,1715353840813,-1053.83624922,0.0001788,2]
[326775392,1715353840824,-595.13350605,0.0001788,2]
[326775393,1715353840834,-595.13350604,0.0001788,2]
[326775395,1715353840843,-595.13350604,0.0001788,2]
[326775397,1715353840851,-595.13350604,0.00018133,2]
[326775399,1715353840860,-1053.83624922,0.00018178,2]
[326775401,1715353840870,-331.07,0.00018342,2]
[326775403,1715353840879,-1000.0,0.00018476,2]
[326775405,1715353840888,-358.36774871,0.00018508,2]
[326775407,1715353840897,-346.84018232,0.00018604,2]
[326775511,1715353841949,-452.45981768,0.00018604,2]
[326775513,1715353841960,-175.79,0.00018669,2]
[326775516,1715353841971,-279.6221926,0.00019,2]
[326775518,1715353841984,-4720.3778074,0.00019,2]
[326775520,1715353841995,-154.91831134,0.00019019,2]
[326775522,1715353842005,-150.0,0.00019102,3]
[326775524,1715353842015,-600.66388126,0.00019123,2]
[326775526,1715353842027,-199.33611874,0.00019123,2]
[326775528,1715353842036,-73.54559701,0.00019124,2]
[326775530,1715353842048,-80.30592025,0.00019124,2]
[326775532,1715353842058,-150.61165563,0.00019146,2]
[326775534,1715353842068,-171.08822808,0.00019168,2]
[326775536,1715353842078,-6738.78,0.00019339,2]
[326775538,1715353842088,-150.15301609,0.00019551,2]
[326775540,1715353842098,-155.0,0.0001967,2]
[326775542,1715353842107,-150.0,0.00019929,3]
[326775544,1715353842117,-595.13350604,0.00020094,2]
[326775546,1715353842127,-155.15556544,0.00020143,2]
[326775548,1715353842137,-1053.83624922,0.00020154,2]
[326775550,1715353842147,-150.61165563,0.00020275,2]
[326775552,1715353842156,-155.56828868,0.00020376,2]
[326775554,1715353842166,-150.15301609,0.00020514,2]
[326775556,1715353842175,-155.56828868,0.00020543,2]
[326775558,1715353842185,-662.34,0.00020546,2]
[326775560,1715353842195,-1000.0,0.00020785,2]
[326775562,1715353842204,-150.15301609,0.00020954,2]
[326775564,1715353842214,-150.15301609,0.00021296,2]
[326775566,1715353842223,-155.56828868,0.00021635,2]
[326775568,1715353842233,-1622.744,0.00021868,2]
[326775570,1715353842242,-1043.739,0.00021868,2]
[326775572,1715353842252,-250.0,0.00021918,2]
[326775574,1715353842262,-2000.0,0.00021918,2]
[326775576,1715353842272,-90.38025609,0.00022055,2]
[326775578,1715353842284,-504.75324995,0.00022055,2]
[326775580,1715353842296,-1053.83624922,0.00022131,2]
[326775582,1715353842308,-156.07730059,0.00022156,2]
[326775584,1715353842319,-150.15301609,0.00022218,2]
[326775586,1715353842330,-189.02,0.00022242,2]
[326775588,1715353842340,-150.15301609,0.00022323,2]
[326775590,1715353842350,-163.69417388,0.00022393,2]
[326775592,1715353842359,-155.15556544,0.00022447,2]
[326775594,1715353842369,-1561.86172371,0.0002257,2]
[326775596,1715353842380,-150.15301609,0.00022639,2]
[326775598,1715353842393,-3502.08126514,0.00022648,2]
[326775600,1715353842403,-1556.11909,0.0002267,2]
[326775602,1715353842413,-155.72478471,0.00022719,2]
[326775603,1715353842423,-2522.4617,0.000228,2]
[326775604,1715353842433,-171.08822808,0.000228,2]
[326775605,1715353842443,-577.53142577,0.000228,2]
[326775606,1715353842452,-150.61165563,0.00022838,2]
[326775607,1715353842462,-18036.6414,0.00022898,2]
[326775608,1715353842472,-9657.7677,0.00022899,2]
[326775609,1715353842482,-1565.3383062,0.000229,2]
[326775610,1715353842494,-2673.9,0.000229,2]
[326775611,1715353842505,-60912.27906604,0.000229,2]
[326775612,1715353842517,-630.32,0.000229,2]
[326775615,1715353842692,-5836.74005,0.000229,2]
[326775616,1715353842704,-5403.02388051,0.000229,2]
[326775617,1715353842715,-1528.13591143,0.000229,2]
[326775618,1715353842728,-340.60174417,0.000229,2]
[326775619,1715353842739,-300.0,0.000229,2]
[326775620,1715353842751,-3049.76858233,0.000229,2]
[326775621,1715353842762,-1500.0,0.000229,2]
[326775622,1715353842773,-1220.0,0.000229,2]
[326775623,1715353842784,-309.880571,0.000229,2]
[326775624,1715353842796,-3136.64187424,0.000229,2]
[326775625,1715353842807,-795.79255063,0.000229,2]
[326775626,1715353842818,-1562.39291835,0.000229,2]
[326775627,1715353842830,-1536.8359451,0.000229,2]
[326775628,1715353842839,-197.62352658,0.000229,2]
[326775629,1715353842848,-315.21021361,0.000229,2]
[326775630,1715353842857,-154.65057799,0.00022921,2]
[326775631,1715353842866,-155.53423595,0.00022951,2]
[326775632,1715353842875,-370.50375018,0.00022998,2]
[326775633,1715353842885,-217.06896693,0.00022998,2]
[326775634,1715353842900,-275.56606053,0.00022998,2]
[326775635,1715353842909,-729.26758473,0.00022998,2]
[326775636,1715353842921,-1707.00138711,0.00022998,2]
[326775716,1715353844992,-610.61,0.00022998,2]
[326775717,1715353845004,-2219.88455436,0.00022998,2]
[326775718,1715353845014,-859.7591188,0.00022998,2]
[326775719,1715353845024,-324.37887832,0.00022998,2]
[326775721,1715353845033,-155.49951612,0.00022998,2]
[326775723,1715353845043,-6215.66758973,0.00022998,2]
[326775724,1715353845052,-377.47756051,0.00022998,2]
[326775725,1715353845062,-155.0,0.00022998,2]
[326775726,1715353845072,-1141.45679987,0.00022999,2]
[326775727,1715353845084,-3279.57566975,0.00022999,2]
[326775728,1715353845093,-155.69095826,0.00022999,2]
[326775729,1715353845103,-155.0,0.00022999,2]
[326775730,1715353845112,-1246.5281018,0.00022999,2]
[326775731,1715353845121,-13553.20527019,0.00023,5]
[326775732,1715353845133,-450.6456554,0.00023,5]
[326775733,1715353845145,-1471.470001,0.00023,5]
[326775738,1715353845964,-373.97275012,0.00017259,2]
[326775741,1715353845974,-14866.27724988,0.00023,5]
[326775744,1715353845985,-610.0,0.00023,5]
[326775747,1715353845997,-7482.63985312,0.00023,5]
[326775751,1715353846458,-1782.71279961,0.00023,5]
[326775752,1715353846470,-16266.34667293,0.00023,5]
[326775754,1715353846482,-9595.1640004,0.00023,5]
[326775756,1715353846495,-2273.83887988,0.00023,5]
[326775758,1715353846507,-556.002,0.00023,5]
[326775759,1715353846522,-10666.05394401,0.00023,5]
[326775761,1715353846534,-32703.71150358,0.00023,5]
[326775763,1715353846547,-40774.19476313,0.00023,5]
[326775765,1715353846559,-105590.48360634,0.00023,5]
[326775766,1715353846569,-23693.87,0.00023,2]
[326775767,1715353846582,-1000.0,0.00023094,2]
[326775768,1715353846592,-157.05198784,0.00023238,2]
[326775769,1715353846602,-150.61165563,0.00023507,2]
[326775770,1715353846612,-577.53142575,0.00023638,2]
[326775771,1715353846621,-315.21021354,0.00023696,2]
[326775772,1715353846631,-432.59885389,0.00024,2]
[326775773,1715353846641,-1072.80775125,0.00024,2]
[326775774,1715353846651,-19613.90775126,0.00024,2]
[326775775,1715353846662,-595.13350604,0.00024016,2]
[326775776,1715353846672,-157.05198784,0.00024107,2]
[326775777,1715353846681,-1053.83624922,0.00024107,2]
[326775778,1715353846691,-180.0,0.0002423,2]
[326775779,1715353846700,-188.48964945,0.00024362,2]
[326775780,1715353846710,-577.53142575,0.00024476,2]
[326775781,1715353846719,-315.21021354,0.00024492,2]
[326775782,1715353846729,-150.0,0.00024493,2]
[326775783,1715353846738,-188.48964945,0.00024551,2]
[326775784,1715353846748,-150.61165563,0.00024717,2]
[326775785,1715353846757,-155.56828868,0.00024729,2]
[326775786,1715353846767,-150.61165563,0.0002488,2]
[326775787,1715353846778,-3184.30629233,0.0002499,2]
[326775788,1715353846793,-5960.57551478,0.0002499,2]
[326775789,1715353846802,-201.0,0.00024991,2]
[326775790,1715353846812,-155.0,0.00025,2]
[326775791,1715353846824,-925.8669637,0.00025,2]
[326775792,1715353846833,-2219.93951707,0.00025,2]
[326775793,1715353846843,-471.94368644,0.00025,2]
[326775794,1715353846852,-539.27,0.00025,2]
[326775795,1715353846861,-500.0,0.00025,2]
[326775796,1715353846871,-150.15301609,0.00025033,2]
[326775797,1715353846880,-9203.51379518,0.00025057,2]
[326775798,1715353846890,-1556.11909,0.0002517,2]
[326775799,1715353846899,-315.21021354,0.00025287,2]
[326775800,1715353846909,-577.53142575,0.00025314,2]
[326775801,1715353846919,-200.0,0.00025362,2]
[326775802,1715353846928,-1000.0,0.00025404,2]
[326775803,1715353846938,-150.15301609,0.00025812,2]
[326775804,1715353846947,-606.28636194,0.00025852,2]
[326775805,1715353846957,-155.15556544,0.00025985,2]
[326775806,1715353846966,-41151.87365336,0.00026,2]
[326775807,1715353846978,-6103.99999999,0.00026,2]
[326775808,1715353846992,-1474.07499999,0.00026,2]
[326775809,1715353847003,-1529.025,0.00026,2]
[326775811,1715354085344,-326.96362247,0.0003,120]
[326775812,1715354085367,-1000.0,0.0003,120]
[326775813,1715354107214,-1038.78,0.0003,90]
[326775814,1715354127442,-162.93664975,0.00027808,30]
[326775815,1715354127567,-162.93664975,0.00028219,30]
[326775816,1715354127638,-162.93664975,0.00028603,30]
[326775817,1715354127832,-500.0,0.00029678,30]
[326775818,1715354127899,-301.16280702,0.0003,30]
[326775819,1715354153313,-173.051019,0.00028198,24]
[326775820,1715354153403,-173.05101,0.00028498,24]
[326775821,1715354153458,-173.05101,0.00028798,24]
[326775822,1715354153515,-173.051008,0.00029198,24]
[326775823,1715354153568,-173.05101,0.00029498,26]
[326775824,1715354153624,-157.051008,0.00029798,26]
[326775825,1715354267499,34490.72488124,0.0003,20]
[326775830,1715355035481,-157.96855427,0.00011743,2]
[326775831,1715355035491,-537.03498854,0.00011744,2]
[326775832,1715355035501,-450.0,0.00011769,2]
[326775833,1715355035510,-155.0,0.00011769,2]
[326775834,1715355035520,-10902.03646608,0.00012241,2]
[326775835,1715355035532,-960.16329301,0.00012241,2]
[326775837,1715355035841,-566.55211337,0.00012241,2]
[326775839,1715355035854,-1730.297936,0.00012241,2]
[326775841,1715355035866,-2933.91684557,0.00012241,2]
[326775843,1715355035877,-415.83320116,0.00012241,2]
[326775846,1715355035890,-740.58240107,0.00012241,2]
[326775848,1715355035902,-500.53973003,0.00012241,2]
[326775850,1715355035914,-1047.0,0.00012241,2]
[326775852,1715355035926,-4654.44,0.00012241,2]
[326775854,1715355035938,-995.87545876,0.00012241,2]
[326775856,1715355035950,-12250.45263496,0.00012241,2]
[326775859,1715355035963,-29984.82429573,0.00012241,2]
[326775861,1715355035975,-900.37502554,0.00012241,2]
[326775863,1715355035988,-1411.11896585,0.00012241,2]
[326775917,1715355038609,-18171.30000001,0.00012241,2]
[326775921,1715355038621,-770.20258543,0.00012241,2]
[326775925,1715355038636,-61282.26156623,0.00012241,2]
[326775929,1715355038648,-859.71245651,0.00012241,2]
[326775951,1715355039293,-20215.41358249,0.00012241,2]
[326775954,1715355039310,-13096.53743314,0.00012241,2]
[326776159,1715355041387,-622.06778806,0.00012241,2]
[326776161,1715355041401,-192102.162221,0.00012241,2]
[326776163,1715355041411,-288.76571291,0.00018004,2]